Workbook

Sheet Datos del producto
A1: [Nombre de la empresa]
A2: Venta de nuevos productos y modelo de previsión de beneficios: datos del producto
A3: [Fecha]
B5: [Empresa] CONFIDENCIAL
A6: Ventas
A7: Nombre de producto | B7: Artículo
A8: Año 1º: estimación de ventas | B8: 100
A9: Año 1º: precio por unidad | B9: 400.00 €
A10: Crecimiento anual comparado del precio por unidad (años 2º a 5º) | B10: 5.00%
A11: Año 1º: volumen de mercado (en dólares) | B11: 50,000,000.00 €
A12: Crecimiento anual comparado del volumen de mercado (años 2º a 5º) | B12: 10.00%
A13: Año 1º: coste variable por unidad | B13: 250.00 €
A14: Crecimiento anual comparado del coste por unidad (años 2º a 5º) | B14: 5.00%
A15: Año 1º: gastos fijos | B15: 250,000.00 €
A16: Tasa de crecimiento anual comparado (años 2º a 5º) | B16: 3.00%
A17: Renta operativa de destino (año 5º) | B17: 100,000.00 €
A18: Cuota de mercado de destino (año 5º) | B18: 2.00%
A20: Factores de desnivel | B20: Año 1 | C20: Año 2º | D20: Año 3º | E20: Año 4º | F20: Año 5º
A22: Años 2º a 4º (% ventas año 5º) | B22: No disponible | C22: 10.0% | D22: 50.0% | E22: 75.0% | F22: 1

Sheet Escenarios
A1: [Nombre de la empresa]
A2: Venta de nuevos productos y modelo de previsión de beneficios: escenarios
A3: [Fecha]
A5: La plantilla calculará los importes en gris. | F5: [Nombre de la empresa] CONFIDENCIAL
A6: Ventas | B6: Año 1º | C6: Año 2º | D6: Año 3º | E6: Año 4º | F6: Año 5º
A7: Precios por unidad | B7: ='Datos del producto'!B9 -> 400.00 € | C7: =B7*(1+'Datos del producto'!$B$10) -> 420.00 € | D7: =C7*(1+'Datos del producto'!$B$10) -> 441.00 € | E7: =D7*(1+'Datos del producto'!$B$10) -> 463.05 € | F7: =E7*(1+'Datos del producto'!$B$10) -> 486.20 €
A8: Costes por unidad | B8: ='Datos del producto'!B13 -> 250.00 € | C8: =B8*(1+'Datos del producto'!$B$14) -> 262.50 € | D8: =C8*(1+'Datos del producto'!$B$14) -> 275.63 € | E8: =D8*(1+'Datos del producto'!$B$14) -> 289.41 € | F8: =E8*(1+'Datos del producto'!$B$14) -> 303.88 €
A9: Gastos fijos | B9: ='Datos del producto'!B15 -> 250,000.00 € | C9: =B9*(1+'Datos del producto'!$B$16) -> 257,500.00 € | D9: =C9*(1+'Datos del producto'!$B$16) -> 265,225.00 € | E9: =D9*(1+'Datos del producto'!$B$16) -> 273,181.75 € | F9: =E9*(1+'Datos del producto'!$B$16) -> 281,377.20 €
A10: Volumen de mercado | B10: ='Datos del producto'!B11 -> 50,000,000.00 € | C10: =B10*(1+'Datos del producto'!$B$12) -> 55,000,000.00 € | D10: =C10*(1+'Datos del producto'!$B$12) -> 60,500,000.00 € | E10: =D10*(1+'Datos del producto'!$B$12) -> 66,550,000.00 € | F10: =E10*(1+'Datos del producto'!$B$12) -> 73,205,000.00 €
A12: Escenario 1: Basado en la renta operativa de destino
A13: Ventas por unidades | B13: ='Datos del producto'!B8 -> 100.00 € | C13: ='Datos del producto'!C22*$F$13 -> 209.17 € | D13: ='Datos del producto'!D22*$F$13 -> 1,045.87 € | E13: ='Datos del producto'!E22*$F$13 -> 1,568.80 € | F13: =(F9+'Datos del producto'!B17)/(F7-F8) -> 2,091.73 €
A14: Ventas en dólares | B14: =B13*B7 -> 40,000.00 € | C14: =C13*C7 -> 87,852.79 € | D14: =D13*D7 -> 461,227.15 € | E14: =E13*E7 -> 726,432.77 € | F14: =F13*F7 -> 1,017,005.87 €
A15: Renta operativa | B15: =B14-(B13*B8)-B9 -> -235,000.00 € | C15: =C14-(C13*C8)-C9 -> -224,555.20 € | D15: =D14-(D13*D8)-D9 -> -92,264.82 € | E15: =E14-(E13*E8)-E9 -> -769.46 € | F15: =F14-(F13*F8)-F9 -> 100,000.00 €
A16: Cuota de mercado | B16: =B14/B10 -> 0.08% | C16: =C14/C10 -> 0.16% | D16: =D14/D10 -> 0.76% | E16: =E14/E10 -> 1.09% | F16: =F14/F10 -> 1.39%
A18: Escenario 2: Basado en la cuota de mercado de destino
A19: Ventas por unidades | B19: ='Datos del producto'!B8 -> 100 | C19: ='Datos del producto'!C22*$F$19 -> 301 | D19: ='Datos del producto'!D22*$F$19 -> 1,506 | E19: ='Datos del producto'!E22*$F$19 -> 2,258 | F19: =F20/F7 -> 3,011
A20: Ventas en dólares | B20: =B7*B13 -> 40,000.00 € | C20: =C19*C7 -> 126,474.46 € | D20: =D19*D7 -> 663,990.93 € | E20: =E19*E7 -> 1,045,785.71 € | F20: ='Datos del producto'!B18*F10 -> 1,464,100.00 €
A21: Renta operativa | B21: =B20-(B19*B8)-B9 -> -235,000.00 € | C21: =C20-(C19*C8)-C9 -> -210,072.08 € | D21: =D20-(D19*D8)-D9 -> -16,228.40 € | E21: =E20-(E19*E8)-E9 -> 118,987.89 € | F21: =F20-(F19*F8)-F9 -> 267,660.30 €
A22: Cuota de mercado | B22: =B20/B10 -> 0.08% | C22: =C20/C10 -> 0.23% | D22: =D20/D10 -> 1.10% | E22: =E20/E10 -> 1.57% | F22: =F20/F10 -> 2.00%

Sheet Gráficas
A45: Graph 1 Title | B45: =CONCATENATE("Scenario 1: ",'Datos del producto'!B7," Sales and Profit Analysis") -> Scenario 1: Artículo Sales and Profit Analysis
A46: Graph 2 Title | B46: =CONCATENATE("Scenario 2: ",'Datos del producto'!B7," Sales and Profit Analysis") -> Scenario 2: Artículo Sales and Profit Analysis
